bitfinex-derivatives/quotes_SOLF0:USTF0_20241212
["timestamp","ask_amount","ask_price","bid_price","bid_amount"]
[1734027789480,2.1394,233.6,233.58,4.94073579]
[1734027789776,11.65881726,233.6,233.57,23.79058914]
[1734027790081,11.65881726,233.6,233.55,5.94764728]
[1734027790281,11.65881726,233.6,233.56,4.90912528]
[1734027790584,11.65881726,233.6,233.55,5.94764728]
[1734027790883,11.65881726,233.6,233.56,4.91054252]
[1734027791080,11.65881726,233.6,233.55,5.94764728]
[1734027791274,11.65881726,233.6,233.56,4.91051824]
[1734027791481,11.65881726,233.6,233.55,5.94764728]
[1734027791784,7.41941726,233.58,233.56,4.91186084]
[1734027791976,7.41941726,233.58,233.55,5.94764728]
[1734027792183,7.41941726,233.58,233.56,4.91190245]
[1734027792376,7.41941726,233.58,233.55,23.79058914]
[1734027792683,7.41941726,233.58,233.56,4.91202685]
[1734027792984,7.41941726,233.58,233.56,5.94764728]
[1734027793183,7.41941726,233.58,233.57,4.91279044]
[1734027793381,9.55901726,233.58,233.57,4.91279044]
[1734027793578,9.55901726,233.58,233.55,23.79058914]
[1734027793777,9.55901726,233.58,233.56,10.86136302]
[1734027793976,9.55901726,233.58,233.56,5.94764728]
[1734027794584,7.41941726,233.58,233.56,5.94764728]
[1734027794881,7.41941726,233.58,233.57,4.91498826]
[1734027795483,7.41941726,233.58,233.57,10.86263554]
[1734027796378,7.41941726,233.58,233.57,14.323405]
[1734027797088,7.41941726,233.58,233.57,3.46076946]
[1734027797986,7.41941726,233.58,233.57,9.40841674]
[1734027798291,7.41941726,233.58,233.57,14.32902364]
[1734027800091,7.41941726,233.58,233.57,3.46076946]
[1734027800291,7.41941726,233.58,233.56,23.79058914]
[1734027800490,7.41941726,233.58,233.57,3.43800895]
[1734027801484,7.41941726,233.58,233.57,9.38565623]
[1734027801687,7.41941726,233.58,233.57,14.31018631]
[1734027801891,7.41941726,233.58,233.57,3.43800895]
[1734027802589,7.41941726,233.58,233.57,17.2737337]
[1734027802786,2.1395,233.59,233.57,17.2737337]
[1734027802993,2.1395,233.59,233.58,3.43800895]
[1734027803194,2.1395,233.59,233.57,5.94764728]
[1734027803394,2.1395,233.59,233.58,3.44056843]
[1734027804096,2.1,233.62,233.58,14.31249734]
[1734027804298,2.1392,233.63,233.59,60.31994428]
[1734027804496,2.1,233.64,233.61,23.79058914]
[1734027804695,2.1,233.65,233.62,22.78083717]
[1734027804996,2.1,233.65,233.63,22.7797429]
[1734027805295,9.55831726,233.66,233.64,6.40455298]
[1734027805497,11.65831726,233.66,233.65,3.44056843]
[1734027805698,9.55831726,233.66,233.65,3.44056843]
[1734027805889,11.65831726,233.66,233.65,3.44056843]
[1734027806195,11.65831726,233.66,233.65,6.40332909]
[1734027807094,11.65831726,233.66,233.65,3.44056843]
[1734027808200,11.65831726,233.66,233.65,6.40363155]
[1734027808493,4.2755,233.79,233.65,6.40363155]
[1734027808695,7.41941726,233.7,233.66,6.40307564]
[1734027808895,7.41941726,233.7,233.67,6.40307564]
[1734027809090,2.1384,233.71,233.68,3.44056843]
[1734027809293,7.41941726,233.72,233.69,6.40141519]
[1734027809494,0.6469,233.85,233.65,7.41941726]
[1734027809698,7.41941726,233.72,233.66,13.14686646]
[1734027809890,7.41941726,233.68,233.67,8.4095659]
[1734027810094,2.1389,233.66,233.61,1.3914]
[1734027810291,7.41941726,233.65,233.62,16.5550358]
[1734027810496,7.41941726,233.65,233.63,16.5550358]
[1734027810694,7.41941726,233.65,233.64,11.81697261]
[1734027811294,7.41941726,233.65,233.64,6.36732146]
[1734027811491,9.55831726,233.65,233.64,6.36732146]
[1734027811695,9.55831726,233.65,233.64,3.40603197]
[1734027812093,7.41941726,233.65,233.61,1.3914]
[1734027812297,2.1391,233.64,233.62,2.96040074]
[1734027812498,2.1391,233.64,233.61,1.3914]
[1734027812704,2.1391,233.64,233.62,6.36526264]
[1734027812903,2.1391,233.64,233.62,3.40503593]
[1734027813902,2.1391,233.64,233.63,3.40483617]
[1734027820716,2.1391,233.64,233.63,6.36719809]
[1734027821113,2.1391,233.64,233.63,54.55093781]
[1734027821413,2.1391,233.64,233.63,11.25411958]
[1734027821613,2.1391,233.64,233.63,6.36719809]
[1734027821913,2.1391,233.64,233.63,3.40483617]
[1734027822413,2.1391,233.64,233.62,23.74913224]
[1734027822606,2.1391,233.64,233.63,54.52294373]
[1734027822811,9.55841726,233.65,233.63,107.58924402]
[1734027823018,9.55841726,233.65,233.64,54.57497629]
[1734027823318,2.1385,233.71,233.64,59.97976454]
[1734027823520,7.41941726,233.73,233.68,23.79728017]
[1734027823711,9.51941726,233.73,233.69,59.97478473]
[1734027823912,9.51941726,233.73,233.7,6.34176623]
[1734027824218,9.51941726,233.73,233.71,6.34154907]
[1734027824418,11.65761726,233.73,233.72,3.37757259]
[1734027825615,2.1384,233.72,233.7,5.94932004]
[1734027825818,9.51941726,233.73,233.72,3.37598555]
[1734027826018,9.51941726,233.73,233.7,5.94932004]
[1734027826213,2.1383,233.72,233.71,3.37602708]
[1734027826611,2.1383,233.72,233.71,6.33884726]
[1734027827312,2.1383,233.72,233.71,6.33895659]
[1734027827519,2.1383,233.72,233.71,3.37602708]
[1734027828816,2.1383,233.72,233.71,6.34002919]
[1734027829117,2.1383,233.72,233.71,3.37662095]
[1734027829317,2.1383,233.72,233.71,6.340064]
[1734027829520,2.1383,233.72,233.71,3.37662095]
[1734027832120,2.1383,233.72,233.71,6.33879983]
[1734027832518,2.1383,233.72,233.71,3.37662095]
[1734027833812,2.1383,233.72,233.71,6.33745313]
[1734027834417,2.1383,233.72,233.71,3.37662095]
[1734027834815,9.51941726,233.73,233.67,5.94932004]
[1734027835018,2.1385,233.7,233.68,3.37336876]
[1734027835213,7.41941726,233.71,233.66,5.94932004]
[1734027835415,7.41941726,233.71,233.68,5.94932004]
[1734027835720,2.1385,233.7,233.69,4.87508253]
[1734027836124,2.1386,233.69,233.68,5.94932004]
[1734027836420,2.1386,233.69,233.68,14.19659831]
[1734027837424,2.1386,233.69,233.68,51.54920054]
[1734027838319,2.1386,233.69,233.68,42.22744775]
[1734027838620,2.1386,233.69,233.68,45.59895749]
[1734027838818,2.1386,233.69,233.68,42.22744775]
[1734027839328,9.55801726,233.69,233.68,3.37170652]
[1734027839618,2.1387,233.68,233.67,23.78935281]
[1734027839821,7.41941726,233.69,233.66,23.78923488]
[1734027840018,2.1388,233.67,233.66,23.78923488]
[1734027840214,11.65821726,233.67,233.66,10.82101754]
[1734027840420,9.51941726,233.67,233.63,23.78923488]
[1734027840620,2.139,233.64,233.63,23.78923488]
[1734027840823,2.139,233.64,233.61,48.88966447]
[1734027840824,7.41941726,233.65,233.62,23.78923488]
[1734027841527,7.41941726,233.63,233.62,5.94127475]
[1734027841727,7.41941726,233.63,233.61,23.78923488]
[1734027841925,2.1,233.62,233.61,23.78923488]
[1734027842127,4.2392,233.62,233.61,2.96080933]
[1734027842924,4.2392,233.62,233.61,6.33577928]
[1734027843327,4.2392,233.62,233.61,17.15780481]
[1734027844033,4.2392,233.62,233.61,13.78283486]
[1734027844219,4.2392,233.62,233.61,17.15988629]
[1734027845120,2.1,233.62,233.61,22.56393304]
[1734027845322,2.139,233.65,233.61,53.99304633]
[1734027845630,2.139,233.65,233.62,22.56733888]
[1734027845631,9.55831726,233.65,233.62,22.56733888]
[1734027845820,9.55831726,233.65,233.63,6.33786076]
[1734027846021,2.1389,233.65,233.64,3.37705143]
[1734027846527,9.55831726,233.65,233.64,3.37705143]
[1734027847232,9.55831726,233.65,233.64,6.34231407]
[1734027848431,9.55831726,233.65,233.6,47.49826447]
[1734027848432,2.1392,233.62,233.6,5.94371866]
[1734027848735,2.1392,233.62,233.61,6.34784068]
[1734027849125,2.1392,233.62,233.61,11.75708549]
[1734027849831,2.1392,233.62,233.61,16.63699525]
[1734027850227,2.1392,233.62,233.61,13.66997117]
[1734027850634,2.1392,233.62,233.61,8.79006141]
[1734027850836,2.1392,233.62,233.61,13.66971512]
[1734027851631,2.1392,233.62,233.61,8.79006141]
[1734027852337,7.41941726,233.65,233.61,8.2601116]
[1734027852640,7.41941726,233.65,233.62,14.20370724]
[1734027852940,7.41941726,233.65,233.63,3.3808166]
[1734027853138,9.55831726,233.65,233.64,3.3808166]
[1734027854539,2.1389,233.65,233.64,3.3808166]
[1734027854730,4.2389,233.65,233.64,3.3808166]
[1734027856437,2.1391,233.63,233.61,23.79167879]
[1734027856740,2.1391,233.63,233.62,13.66604584]
[1734027857039,2.1391,233.63,233.62,19.60971943]
[1734027857240,2.1391,233.63,233.62,19.04674758]
[1734027857539,2.1391,233.63,233.62,53.84602322]
[1734027857741,2.1391,233.63,233.62,59.78757223]
[1734027857936,2.1391,233.63,233.62,22.42424026]
[1734027858141,2.1391,233.63,233.62,59.78783501]
[1734027858341,2.1391,233.63,233.62,19.60752161]
[1734027858637,2.1391,233.63,233.62,59.78692562]
[1734027858841,2.1391,233.63,233.62,59.78692221]
[1734027859543,2.1391,233.63,233.62,56.97014795]
[1734027859839,2.1391,233.63,233.62,10.82039955]
[1734027860040,2.1391,233.63,233.62,19.60776175]
[1734027860240,2.1391,233.63,233.62,59.78664803]
[1734027860440,2.1391,233.63,233.62,59.7860652]
[1734027861042,2.1391,233.63,233.62,56.97001844]
[1734027861239,2.139,233.64,233.62,59.7859844]
[1734027861443,4.276,233.76,233.63,22.42050479]
[1734027861742,5.16200991,233.7,233.64,8.78491601]
[1734027861936,2.1387,233.68,233.66,5.94154901]
[1734027862141,2.1387,233.68,233.67,8.78318146]
[1734027862937,2.1387,233.68,233.67,3.37975469]
[1734027863143,2.1387,233.68,233.67,8.78015651]
[1734027863340,4.2386,233.7,233.67,19.59870755]
[1734027863541,4.2386,233.7,233.67,27.16649241]
[1734027863742,4.2386,233.7,233.68,8.78114481]
[1734027864044,4.2386,233.7,233.69,8.78240808]
[1734027864635,2.1386,233.7,233.69,8.78240808]
[1734027864839,2.1,233.71,233.69,8.78240808]
[1734027865047,2.1,233.71,233.7,3.37698327]
[1734027865747,4.2384,233.71,233.7,3.37698327]
[1734027866642,4.2384,233.71,233.7,3.37706673]
[1734027867048,2.1388,233.67,233.66,5.94154901]
[1734027867246,2.1388,233.67,233.66,13.66475471]
[1734027867447,2.1388,233.67,233.66,8.25905601]
[1734027868050,2.1388,233.67,233.66,3.37854319]
[1734027869057,2.1388,233.67,233.66,8.26037991]
[1734027869448,2.1388,233.67,233.66,4.88183672]
[1734027869646,2.1388,233.67,233.66,8.26043953]
[1734027870552,2.1388,233.67,233.66,14.20198854]
[1734027870941,2.1388,233.67,233.66,3.37860281]
[1734027871153,2.1388,233.67,233.66,14.20392176]
[1734027871352,2.1388,233.67,233.66,3.37860281]
[1734027871651,2.1388,233.67,233.66,14.20472391]
[1734027872150,2.1388,233.67,233.66,19.61115926]
[1734027872350,2.1388,233.67,233.66,8.78559644]
[1734027872551,2.1388,233.67,233.66,22.42744779]
[1734027872742,2.1388,233.67,233.66,11.60109725]
[1734027872943,2.1388,233.67,233.66,12.16381544]
[1734027873151,2.1388,233.67,233.66,60.37333246]
[1734027873353,2.1386,233.69,233.66,137.18392101]
[1734027873553,2.1386,233.69,233.67,59.81156257]
[1734027873754,2.1386,233.69,233.68,59.80121633]
[1734027873948,2.1386,233.69,233.68,8.78521263]
[1734027874453,2.1386,233.69,233.68,11.59956493]
[1734027874753,2.1386,233.69,233.68,59.79565407]
[1734027875955,2.1386,233.69,233.68,51.01044144]
[1734027876155,2.1386,233.69,233.68,11.59403596]
[1734027876347,2.1386,233.69,233.68,8.77968366]
[1734027876553,2.1386,233.69,233.68,14.18315972]
[1734027877448,2.1386,233.69,233.68,17.56033226]
[1734027878056,2.1386,233.69,233.68,20.37369108]
[1734027878957,2.1386,233.69,233.68,17.56033226]
[1734027879156,2.1386,233.69,233.68,14.18145716]
[1734027879356,2.1386,233.69,233.68,17.5575656]
[1734027879556,2.1386,233.69,233.68,20.3716383]
[1734027880159,2.1386,233.69,233.68,68.55139227]
[1734027880461,2.1386,233.69,233.68,20.3716383]
[1734027881252,2.1386,233.69,233.68,68.54806359]
[1734027881458,2.1386,233.69,233.68,20.3716383]
[1734027882058,2.1386,233.69,233.68,17.5575656]
[1734027882357,2.1386,233.69,233.68,20.37192116]
[1734027884658,2.1386,233.69,233.68,11.5922375]
[1734027885259,2.1386,233.69,233.68,136.57217936]
[1734027885558,2.1386,233.69,233.68,133.7654268]
[1734027885859,2.1386,233.69,233.68,53.60868384]
[1734027886054,2.1386,233.69,233.68,61.83185772]
[1734027886251,2.1386,233.69,233.68,138.62286658]
[1734027886662,2.1386,233.69,233.68,133.21641431]
[1734027886860,2.1386,233.69,233.68,136.59565017]
[1734027887559,2.1386,233.69,233.68,133.77925367]
[1734027887860,2.1386,233.69,233.68,56.98824481]
[1734027891962,2.1386,233.69,233.68,48.20223157]
[1734027892263,2.1387,233.68,233.67,23.78950914]
[1734027892465,2.1387,233.68,233.67,53.63347099]
[1734027892664,2.1387,233.68,233.67,57.01385959]
[1734027894364,2.1387,233.68,233.67,136.66378936]
[1734027894562,2.1387,233.68,233.67,57.01385959]
[1734027894758,2.1387,233.68,233.67,6.19794572]
[1734027895067,2.1387,233.68,233.67,11.6071434]
[1734027895262,2.1387,233.68,233.67,11.60749707]
[1734027895670,2.1387,233.68,233.67,139.51263162]
[1734027895868,2.1387,233.68,233.67,14.42655669]
[1734027896668,2.1387,233.68,233.67,249.88613115]
[1734027898468,2.1387,233.68,233.67,238.27721862]
[1734027898670,2.1387,233.68,233.67,249.97934255]
[1734027899671,2.1387,233.68,233.67,249.97946517]
[1734027900865,2.1387,233.68,233.67,14.51989071]
[1734027901768,2.1387,233.68,233.67,249.97959626]
[1734027901973,2.1387,233.68,233.67,107.44442594]
[1734027902267,2.1387,233.68,233.67,250.26854972]
[1734027902967,2.1387,233.68,233.67,14.51989071]
[1734027903767,2.1387,233.68,233.67,2.81764416]
[1734027903965,2.1387,233.68,233.67,9.03946451]
[1734027904166,2.1387,233.68,233.67,11.43102474]
[1734027904370,2.1387,233.68,233.67,14.3404495]
[1734027904872,2.1387,233.68,233.67,11.52280534]
[1734027905074,2.1387,233.68,233.67,136.66460427]
[1734027905473,2.1387,233.68,233.67,11.52280534]
[1734027907081,2.1387,233.68,233.67,2.90942476]
[1734027907272,2.1387,233.68,233.67,11.52595179]
[1734027907676,2.1387,233.68,233.67,107.36425744]
[1734027907979,2.1387,233.68,233.67,141.48113725]
[1734027908480,2.1387,233.68,233.67,16.33133907]
[1734027908983,2.1387,233.68,233.67,11.52595179]
[1734027910575,2.1387,233.68,233.67,6.22347362]
[1734027913882,2.1387,233.68,233.67,3.31404886]
[1734027914083,2.1387,233.68,233.67,6.15339066]
[1734027914383,11.65811726,233.68,233.67,6.15339066]
[1734027916682,11.65811726,233.68,233.67,3.31404886]
[1734027916982,11.65811726,233.68,233.64,142.75589679]
[1734027916983,2.1389,233.65,233.64,142.75589679]
[1734027917180,2.1389,233.65,233.64,133.52613556]
[1734027917483,2.1389,233.65,233.64,8.41672959]
[1734027919588,2.1389,233.65,233.64,3.23720369]
[1734027919881,7.41941726,233.66,233.62,71.37794839]
[1734027920079,2.1,233.68,233.62,71.37794839]
[1734027920080,9.55851726,233.63,233.62,71.37794839]
[1734027920274,11.65851726,233.63,233.62,133.5026553]
[1734027921277,11.65851726,233.63,233.62,8.41414522]
[1734027921479,2.1,233.63,233.6,7.41941726]
[1734027921684,2.1,233.67,233.62,7.41941726]
[1734027921884,2.1,233.67,233.64,7.41941726]
[1734027922180,2.1,233.67,233.65,8.40755921]
[1734027922385,2.1,233.67,233.66,3.2342761]
[1734027922985,7.41941726,233.7,233.66,3.2342761]
[1734027923185,4.2386,233.69,233.67,3.2342761]
[1734027923385,4.2386,233.69,233.68,3.2342761]
[1734027924087,2.1386,233.69,233.68,3.2342761]
[1734027924288,4.2385,233.71,233.68,3.2342761]
[1734027924483,4.2385,233.71,233.69,3.2342761]
[1734027924790,4.2385,233.71,233.66,78.79736565]
[1734027924991,4.2385,233.71,233.67,3.2325376]
[1734027925290,4.2385,233.71,233.68,3.2325376]
[1734027925486,4.2385,233.71,233.69,3.2325376]
[1734027925692,4.2385,233.71,233.7,3.2325376]
[1734027925893,2.1385,233.71,233.7,3.2325376]
[1734027926185,2.1385,233.71,233.7,6.04118699]
[1734027926391,2.1385,233.71,233.7,2.80864939]
[1734027926691,2.1385,233.71,233.7,11.40206426]
[1734027927682,2.1383,233.72,233.7,11.40206426]
[1734027927989,2.1383,233.72,233.71,11.40237252]
[1734027928294,2.1383,233.72,233.71,8.59341487]
[1734027928686,2.1383,233.72,233.71,3.23161989]
[1734027928888,2.1383,233.72,233.71,8.59623184]
[1734027929784,9.55771726,233.72,233.71,3.23161989]
[1734027930190,9.55771726,233.72,233.71,6.134553]
[1734027930893,2.1383,233.72,233.71,11.49780511]
[1734027931587,47.01475795,233.73,233.71,11.49780511]
[1734027931894,47.01475795,233.73,233.72,11.49780511]
[1734027932586,2.1,233.73,233.72,8.594872]
[1734027932892,2.1,233.73,233.72,2.90119653]
[1734027933096,4.2382,233.73,233.72,6.25246534]
[1734027933692,4.2382,233.73,233.72,11.61449544]
[1734027934194,4.2382,233.73,233.72,6.25246534]
[1734027935290,4.2382,233.73,233.72,3.35126881]
[1734027936792,2.1387,233.69,233.67,71.37794839]
[1734027936989,2.1387,233.69,233.68,11.48259326]
[1734027938193,0.65846065,233.69,233.59,71.37794839]
[1734027938390,7.41941726,233.6,233.59,71.37794839]
[1734027938594,9.51941726,233.6,233.59,11.48496524]
[1734027939095,9.51941726,233.6,233.59,3.33660891]
[1734027939297,9.51941726,233.6,233.56,71.37794839]
[1734027939485,7.41941726,233.58,233.57,11.48601327]
[1734027939790,9.55901726,233.58,233.57,6.14558781]
[1734027940284,9.55901726,233.58,233.57,3.33617549]
[1734027940687,2.1398,233.56,233.55,5.94816236]
[1734027940885,2.1,233.6,233.52,23.79264946]
[1734027941094,7.41941726,233.55,233.53,13.62603431]
[1734027941290,2.14,233.53,233.52,17.8444871]
[1734027941491,2.14,233.53,233.52,18.8622089]
[1734027941688,2.14,233.53,233.52,13.59718874]
[1734027941993,2.14,233.53,233.52,4.86501959]
[1734027942187,2.1401,233.52,233.51,5.92561711]
[1734027942384,9.55951726,233.52,233.51,7.67254154]
[1734027942592,7.41941726,233.52,233.5,5.92561711]
[1734027942786,2.1402,233.51,233.5,5.92561711]
[1734027942984,2.1402,233.51,233.5,2.80537564]
[1734027943188,7.41941726,233.52,233.46,23.77010421]
[1734027943391,7.41941726,233.48,233.47,4.86412982]
[1734027943592,9.49941726,233.48,233.45,7.37381711]
[1734027943796,9.49941726,233.48,233.46,4.85945858]
[1734027943991,9.49941726,233.48,233.45,7.37381711]
[1734027944193,9.49941726,233.48,233.46,4.85947513]
[1734027944391,9.49941726,233.48,233.44,1.4351]
[1734027944587,7.41941726,233.46,233.42,5.92561711]
[1734027944791,7.41941726,233.44,233.43,4.85649188]
[1734027944993,7.41941726,233.45,233.43,4.85649188]
[1734027945295,7.41941726,233.45,233.41,23.77010421]
[1734027945495,7.41941726,233.45,233.4,63.56152027]
[1734027945695,2.1409,233.44,233.41,10.07206796]
[1734027945994,2.1409,233.44,233.4,63.56152027]
[1734027946186,2.1409,233.44,233.41,4.81763166]
[1734027946386,2.1409,233.44,233.4,57.63590316]
[1734027946585,7.41941726,233.45,233.4,57.63590316]
[1734027947293,7.41941726,233.45,233.41,4.81348141]
[1734027947591,7.41941726,233.45,233.4,63.56152027]
[1734027947894,7.41941726,233.45,233.41,5.24692422]
[1734027948098,7.41941726,233.45,233.4,63.56152027]
[1734027948294,9.56021726,233.45,233.43,71.3779484]
[1734027948510,2.08,233.48,233.42,5.90346169]
[1734027948700,7.41941726,233.43,233.4,5.90346169]
[1734027948993,9.49941726,233.43,233.39,7.26206169]
[1734027949194,9.56051726,233.41,233.38,7.25496169]
[1734027949499,9.56051726,233.41,233.38,1.3515]
[1734027950095,2.1411,233.41,233.38,1.3515]
[1734027950295,7.41941726,233.4,233.38,1.3515]
[1734027951104,7.41941726,233.4,233.34,9.56121726]
[1734027951401,2.08,233.43,233.35,5.47131391]
[1734027951402,7.41941726,233.38,233.35,5.47131391]
[1734027951592,7.41941726,233.38,233.32,8.70286169]
[1734027951593,9.51941726,233.38,233.32,8.70286169]
[1734027951795,11.66081726,233.38,233.33,10.51366646]
[1734027951999,7.41941726,233.36,233.32,8.70286169]
[1734027952190,7.41941726,233.36,233.33,10.51321028]
[1734027952396,7.41941726,233.36,233.32,8.70286169]
[1734027952705,7.41941726,233.36,233.33,13.91970603]
[1734027952902,7.41941726,233.36,233.34,3.41481999]
[1734027953095,7.41941726,233.36,233.35,3.41481999]
[1734027953900,9.56101726,233.36,233.35,3.41481999]
[1734027954405,7.41941726,233.36,233.35,8.45014226]
[1734027954705,7.41941726,233.36,233.35,3.41481999]
[1734027955201,7.41941726,233.36,233.35,3.41115781]
[1734027955602,9.56101726,233.36,233.35,3.41115781]
[1734027956004,7.41941726,233.36,233.32,2.7994]
[1734027956198,7.41941726,233.33,233.32,2.7994]
[1734027956405,9.51941726,233.33,233.32,3.40877583]
[1734027956699,9.51941726,233.33,233.27,5.90346169]
[1734027956903,2.1,233.33,233.28,3.4097506]
[1734027957206,2.1422,233.29,233.25,5.90346169]
[1734027957502,7.41941726,233.27,233.26,8.36452149]
[1734027957697,9.51941726,233.28,233.26,3.37558525]
[1734027957903,7.41941726,233.31,233.27,8.36070619]
[1734027958102,2.1,233.32,233.28,14.26321174]
[1734027958296,2.1,233.32,233.3,71.1991457]
[1734027958499,2.1,233.32,233.27,7.30136169]
[1734027958704,2.1,233.32,233.28,4.90303553]
[1734027958899,2.1,233.32,233.27,7.30136169]
[1734027959109,2.1,233.32,233.28,10.41885336]
[1734027959305,2.1,233.32,233.29,8.27655336]
[1734027959504,2.1,233.32,233.29,3.37426629]
[1734027959803,2.1,233.32,233.3,3.37426629]
[1734027959999,2.1,233.32,233.28,2.1423]
[1734027960201,2.1,233.32,233.29,3.37054413]
[1734027960398,2.1,233.32,233.28,2.1423]
[1734027960604,2.1,233.32,233.29,3.36905256]
[1734027960906,2.1,233.32,233.3,3.36889567]
[1734027961101,2.1,233.32,233.28,2.1423]
[1734027961306,2.1,233.32,233.29,3.36826454]
[1734027961505,2.1,233.32,233.3,3.36826454]
[1734027961701,2.1,233.32,233.28,8.04576169]
[1734027961908,9.51941726,233.32,233.29,3.3664217]
[1734027962206,9.51941726,233.32,233.3,3.3664217]
[1734027962409,9.51941726,233.32,233.29,5.90346169]
[1734027962600,9.51941726,233.32,233.3,3.36461702]
[1734027962800,9.51941726,233.32,233.28,8.04576169]
[1734027963001,9.51941726,233.32,233.29,8.20765825]
[1734027963205,9.51941726,233.32,233.3,8.20529368]
[1734027963405,9.51941726,233.32,233.29,5.90346169]
[1734027963603,9.51941726,233.32,233.28,8.04576169]
[1734027963799,9.51941726,233.32,233.29,8.20935976]
[1734027964000,9.51941726,233.32,233.3,4.84528696]
[1734027964209,9.51941726,233.32,233.29,5.90346169]
[1734027964410,9.51941726,233.32,233.28,8.04576169]
[1734027964611,9.51941726,233.32,233.29,8.16768214]
[1734027964811,9.51941726,233.32,233.28,5.90346169]
[1734027965108,9.51941726,233.32,233.29,8.1685062]
[1734027965305,9.51941726,233.32,233.28,5.90346169]
[1734027965499,9.51941726,233.32,233.29,14.0696965]
[1734027965701,9.51941726,233.32,233.3,4.80367836]
[1734027966010,9.51941726,233.32,233.29,5.90346169]
[1734027966401,9.51941726,233.32,233.3,10.71094082]
[1734027966613,9.51941726,233.32,233.3,5.90346169]
[1734027967111,9.51941726,233.32,233.3,23.61384677]
[1734027968009,5.2040699,233.36,233.3,23.61384677]
[1734027968314,2.1,233.37,233.34,23.61384677]
[1734027968912,0.2051,233.44,233.35,49.54962428]
[1734027969109,7.41941726,233.4,233.36,50.7624169]
[1734027969410,7.41941726,233.4,233.36,23.61384677]
[1734027969715,2.1,233.39,233.36,23.61384677]
[1734027969908,2.1,233.39,233.37,50.78916509]
[1734027970214,9.51941726,233.4,233.37,23.61384677]
[1734027970408,9.51941726,233.4,233.37,71.1991457]
[1734027970804,9.51941726,233.4,233.37,73.3406457]
[1734027971002,9.51941726,233.4,233.37,71.1991457]
[1734027971204,9.51941726,233.4,233.38,127.01351145]
[1734027971415,9.51941726,233.4,233.38,71.1991457]
[1734027972406,9.51941726,233.4,233.38,142.5770941]
[1734027972712,9.51941726,233.4,233.39,3.36157256]
[1734027974810,7.41941726,233.4,233.39,3.36157256]
[1734027975011,2.08,233.41,233.39,236.20178403]
[1734027975210,2.08,233.41,233.4,3.36157256]
[1734027975410,7.41941726,233.42,233.4,3.36157256]
[1734027975608,7.41941726,233.42,233.41,236.25298636]
[1734027975809,7.41941726,233.43,233.41,265.32493598]
[1734027976010,7.41941726,233.43,233.42,235.55940451]
[1734027976210,2.2851,233.44,233.42,235.55940451]
[1734027976407,9.70451726,233.44,233.43,3.36157256]
[1734027977514,9.70451726,233.44,233.43,84.0086815]
[1734027977515,7.62451726,233.44,233.43,84.0086815]
[1734027977715,7.62451726,233.44,233.43,8.75350133]
[1734027977911,7.62451726,233.44,233.43,3.36157256]
[1734027978111,7.62451726,233.44,233.43,8.75371045]
[1734027979309,7.62451726,233.44,233.43,131.32208333]
[1734027979517,7.62451726,233.44,233.43,8.75371045]
[1734027979713,7.62451726,233.44,233.43,239.83489115]
[1734027979916,7.62451726,233.44,233.43,14.66552346]
[1734027980119,7.62451726,233.44,233.43,8.75371045]
[1734027980612,7.62451726,233.44,233.42,143.19511225]
[1734027980813,9.49941726,233.46,233.42,143.19511225]
[1734027981013,7.41941726,233.46,233.42,143.19511225]
[1734027981914,2.1406,233.47,233.43,122.61240358]
[1734027982220,9.49941726,233.48,233.44,122.6064971]
[1734027982415,9.49941726,233.48,233.44,70.94175612]
[1734027982611,9.49941726,233.48,233.44,141.88351225]
[1734027982919,2.08,233.52,233.45,231.13293341]
[1734027983122,7.41941726,233.51,233.46,122.61221459]
[1734027983315,7.41941726,233.51,233.45,70.94175613]
[1734027983316,7.41941726,233.51,233.48,70.94175612]
[1734027983516,44.56,233.62,233.48,70.94175612]
[1734027983813,7.41941726,233.56,233.51,70.94175612]
[1734027984019,7.41941726,233.56,233.51,74.47675612]
[1734027984217,7.41941726,233.56,233.52,1.432]
[1734027984412,7.41941726,233.56,233.52,72.37375612]
[1734027984618,7.41941726,233.53,233.52,72.37375612]
[1734027984824,7.41941726,233.53,233.52,1.432]
[1734027985320,9.49941726,233.55,233.52,1.432]
[1734027986028,9.49941726,233.55,233.53,601.25518016]
[1734027986320,9.49941726,233.55,233.53,316.88105546]
[1734027986524,9.49941726,233.55,233.53,260.62917344]
[1734027986919,2.1397,233.57,233.53,260.62917344]
[1734027987120,7.41941726,233.56,233.53,260.62917344]
[1734027987420,7.41941726,233.56,233.53,141.88351225]
[1734027988421,7.41941726,233.56,233.52,9.48391301]
[1734027988618,7.41941726,233.56,233.52,3.5721]
[1734027989919,9.55921726,233.56,233.52,3.5721]
[1734027990921,9.55921726,233.56,233.52,1.432]